bitfinex/quotes_ETHUSD_20250425
["timestamp","ask_amount","ask_price","bid_price","bid_amount"]
[1745546248116,5.7388,1767.3,1766.8,0.8229]
[1745546248343,5.7388,1767.3,1766.9,0.15287232]
[1745546248547,6.31268,1767.3,1766.8,0.8229]
[1745546249048,6.31268,1767.3,1766.9,0.15287232]
[1745546249415,6.31268,1767.3,1766.8,0.8229]
[1745546249634,5.7388,1767.3,1767.0,0.15244921]
[1745546249826,5.7388,1767.3,1766.9,0.15287232]
[1745546250040,4.918,1767.3,1767.1,0.15202614]
[1745546250354,4.918,1767.3,1767.0,0.15244921]
[1745546250521,4.918,1767.3,1766.8,0.8229]
[1745546250729,4.918,1767.3,1766.9,0.15287232]
[1745546250922,4.918,1767.3,1766.8,0.8229]
[1745546251247,4.918,1767.3,1766.9,0.15287232]
[1745546251553,4.918,1767.3,1766.8,0.8229]
[1745546251922,4.918,1767.3,1766.9,0.15287232]
[1745546252149,1.57807236,1767.2,1766.4,0.4093886]
[1745546252316,0.76697236,1767.0,1766.5,0.95586523]
[1745546252513,4.917,1766.9,1766.5,0.95586523]
[1745546254626,0.7997,1766.8,1766.5,0.15456523]
[1745546254941,1.56667236,1766.8,1766.4,0.4093886]
[1745546255347,1.56667236,1766.8,1766.5,0.15313762]
[1745546255348,2.2150396,1766.8,1766.5,0.15313762]
[1745546255654,2.2150396,1766.8,1766.4,0.4093886]
[1745546256228,2.2150396,1766.8,1766.5,0.15440205]
[1745546258770,2.2150396,1766.8,1766.4,0.4093886]
[1745546258952,1.44806724,1766.8,1766.5,0.15489162]
[1745546259266,1.44806724,1766.8,1766.4,0.4093886]
[1745546259642,1.44806724,1766.8,1766.5,0.15489162]
[1745546259975,1.44806724,1766.8,1766.4,0.4093886]
[1745546260260,1.44806724,1766.8,1766.5,0.15489162]
[1745546260628,1.44806724,1766.8,1766.4,0.4093886]
[1745546261130,1.44806724,1766.8,1766.5,0.15493246]
[1745546261326,1.44806724,1766.8,1766.4,0.4093886]
[1745546261732,1.44806724,1766.8,1766.5,0.15493246]
[1745546261932,0.76697236,1766.7,1766.4,0.4093886]
[1745546262132,0.7723,1766.6,1766.4,0.4093886]
[1745546262332,4.918,1766.5,1766.4,0.4093886]
[1745546262533,4.918,1766.5,1766.4,0.56511163]
[1745546264367,5.48703,1766.5,1766.4,0.56511163]
[1745546266167,10.03900236,1766.5,1766.4,0.56511163]
[1745546266366,10.03900236,1766.5,1766.4,0.4093886]
[1745546266367,10.34943269,1766.5,1766.4,0.4093886]
[1745546267263,9.58246033,1766.5,1766.4,0.4093886]
[1745546267451,10.03900236,1766.5,1766.4,0.4093886]
[1745546276988,3.0,1766.4,1765.1,0.825]
[1745546277156,3.0,1766.4,1765.3,0.76697236]
[1745546277157,0.76697236,1766.2,1765.3,0.76697236]
[1745546277480,4.915,1766.1,1765.4,0.91938151]
[1745546279358,0.773,1766.0,1765.4,0.91938151]
[1745546279977,0.7593222,1766.0,1765.4,0.91938151]
[1745546281783,4.915,1766.1,1765.4,0.91938151]
[1745546283185,5.7116,1766.1,1765.4,0.91938151]
[1745546283481,6.40117911,1766.1,1765.4,0.91938151]
[1745546285984,6.40117911,1766.1,1765.4,1.48498151]
[1745546286175,6.40117911,1766.1,1765.4,0.91938151]
[1745546286578,5.7116,1766.1,1765.4,0.91938151]
[1745546286975,0.7966,1766.1,1765.5,0.76697236]
[1745546287166,4.916,1766.1,1765.6,0.91336924]
[1745546291461,5.742,1766.1,1765.6,0.91336924]
[1745546300000,0.826,1766.1,1765.6,0.91336924]
[1745546302704,5.6926,1766.3,1765.8,0.7587]
[1745546302999,5.6926,1766.3,1765.9,0.1509057]
[1745546303173,5.6926,1766.3,1765.8,0.7587]
[1745546303374,5.6926,1766.3,1765.9,0.15013127]
[1745546303574,5.6926,1766.3,1765.8,0.7587]
[1745546303800,5.6926,1766.3,1765.9,0.15013127]
[1745546303996,5.6926,1766.3,1765.8,0.7587]
[1745546304204,5.6926,1766.3,1765.9,0.15013127]
[1745546304509,5.6926,1766.3,1765.8,0.7587]
[1745546304808,5.6926,1766.3,1765.9,0.15013127]
[1745546305005,6.26186,1766.3,1765.9,0.15013127]
[1745546305304,6.26186,1766.3,1765.8,0.7587]
[1745546305493,6.26186,1766.3,1766.0,0.14909641]
[1745546305692,6.26186,1766.3,1765.9,0.14952]
[1745546305901,6.26186,1766.3,1766.1,0.14867288]
[1745546306076,6.26186,1766.3,1766.0,0.14909641]
[1745546306277,6.26186,1766.3,1766.2,0.14824939]
[1745546306498,5.6926,1766.3,1766.1,0.14867288]
[1745546306720,5.6926,1766.3,1765.8,0.7587]
[1745546307197,5.6926,1766.3,1765.9,0.14952]
[1745546307475,0.7952,1766.2,1765.6,0.7536]
[1745546307978,0.7952,1766.2,1765.7,0.15040806]
[1745546315608,0.7633,1766.1,1765.7,0.15040806]
[1745546315810,0.7633,1766.1,1765.2,1.19866888]
[1745546316000,0.7633,1766.1,1765.3,1.67030103]
[1745546321306,0.7633,1766.1,1765.3,2.10228288]
[1745546327632,0.7633,1766.1,1765.3,1.32658288]
[1745546327793,0.76697236,1766.0,1765.3,0.12762867]
[1745546327993,0.788,1765.9,1765.1,1.59737236]
[1745546328195,0.788,1765.8,1765.2,0.11875194]
[1745546328928,0.7974,1765.7,1764.9,1.57297236]
[1745546329130,0.7974,1765.7,1765.3,0.12137952]
[1745546329317,0.7974,1765.7,1764.8,1.54007236]
[1745546329525,0.7974,1765.7,1765.4,0.1209555]
[1745546329719,0.7974,1765.7,1764.8,4.54007236]
[1745546329927,0.7974,1765.7,1765.5,0.12053153]
[1745546330121,0.7974,1765.7,1764.9,0.45400724]
[1745546330525,0.7974,1765.7,1765.0,0.12265188]
[1745546330721,0.7974,1765.7,1765.0,1.32489986]
[1745546330936,0.7974,1765.7,1765.0,0.88962424]
[1745546332548,0.7974,1765.7,1765.0,1.65732424]
[1745546334429,0.7974,1765.7,1765.0,2.08461549]
[1745546340459,0.7974,1765.7,1765.0,5.08461549]
[1745546340757,0.7974,1765.7,1765.1,0.50846155]
[1745546340956,0.7974,1765.7,1765.1,0.63223332]
[1745546345466,0.7974,1765.7,1765.1,0.12377177]
[1745546349356,0.7974,1765.7,1765.1,1.66365386]
[1745546350363,4.91,1765.7,1765.1,1.66365386]
[1745546350659,0.8055,1765.6,1765.1,1.66365386]
[1745546350861,0.8055,1765.6,1765.4,1.53988209]
[1745546351064,0.8055,1765.6,1765.5,0.12333526]
[1745546352467,0.8055,1765.6,1765.3,1.53988209]
[1745546352639,0.8055,1765.6,1765.4,0.12375923]
[1745546353869,0.8055,1765.6,1765.2,0.76978298]
[1745546354073,0.8055,1765.6,1765.3,0.12418325]
[1745546359758,0.8055,1765.6,1765.2,0.76978298]
[1745546359960,0.8055,1765.6,1765.4,0.12314965]
[1745546360142,0.8055,1765.6,1765.3,0.12357367]
[1745546360338,0.8055,1765.6,1765.2,0.76978298]
[1745546360549,0.7858,1765.9,1765.4,0.89293263]
[1745546360751,0.7858,1765.9,1765.6,0.76978298]
[1745546361264,0.7858,1765.9,1765.7,0.11995076]
[1745546361465,0.7858,1765.9,1765.6,0.76978298]
[1745546361853,0.7858,1765.9,1765.7,0.11995076]
[1745546362064,0.7858,1765.9,1765.4,1.56058298]
[1745546362260,0.7858,1765.9,1765.4,1.97544225]
[1745546362564,0.7858,1765.9,1765.5,0.12079835]
[1745546371291,0.7858,1765.9,1765.5,0.82102241]
[1745546373960,0.7858,1765.9,1765.6,0.76978298]
[1745546374367,0.7858,1765.9,1765.7,0.11746939]
[1745546374888,0.7763,1766.1,1765.7,0.11746939]
[1745546375092,0.7763,1766.1,1765.7,0.88006939]
[1745546375299,0.7763,1766.1,1765.7,0.11746939]
[1745546379194,0.7763,1766.1,1765.8,1.53890669]
[1745546379575,0.7763,1766.1,1765.9,0.11469584]
[1745546379774,0.7763,1766.1,1765.8,1.53890669]
[1745546379996,0.7763,1766.1,1766.0,0.11427228]
[1745546380191,0.7763,1766.1,1765.8,1.53890669]
[1745546380368,0.7763,1766.1,1766.0,0.11427228]
[1745546380569,0.7763,1766.1,1765.7,2.32180669]
[1745546380868,0.7763,1766.1,1766.0,0.11403282]
[1745546381481,0.7763,1766.1,1765.7,2.32180669]
[1745546381997,0.7763,1766.1,1765.8,0.11487996]
[1745546382977,0.7509,1766.0,1765.8,0.11487996]
[1745546383295,0.7509,1766.0,1765.4,1.16845927]
[1745546383296,0.7509,1766.0,1765.4,2.70736596]
[1745546383665,0.7509,1766.0,1765.4,5.70736596]
[1745546383966,0.7509,1766.0,1765.5,0.68696886]
[1745546384297,0.7509,1766.0,1765.5,2.22587555]
[1745546385303,0.7509,1766.0,1765.5,0.68696886]
[1745546395909,0.7509,1766.0,1765.6,0.76957921]
[1745546396084,0.7509,1766.0,1765.6,1.56467921]
[1745546396282,0.7509,1766.0,1765.7,0.11558801]
[1745546399617,5.6674,1766.4,1765.9,0.8319]
[1745546399823,5.6674,1766.4,1766.0,0.76957921]
[1745546399988,0.7654,1766.4,1766.0,0.88255601]
[1745546401022,0.7654,1766.4,1766.2,0.76957921]
[1745546401185,0.8099,1766.6,1766.2,0.76957921]
[1745546401516,0.8099,1766.8,1766.4,1.59427921]
[1745546401686,0.8099,1766.8,1766.4,0.76957921]
[1745546402489,5.21292151,1767.2,1766.6,0.76957921]
[1745546402823,0.31192151,1767.2,1767.1,0.76957921]
[1745546403201,0.7999,1767.6,1767.1,1.57167921]
[1745546403396,0.7634,1767.8,1767.4,0.76957921]
[1745546403798,0.7634,1767.8,1767.1,6.11725419]
[1745546404013,0.7634,1767.8,1767.2,3.76957921]
[1745546404201,0.7634,1767.8,1767.4,0.76957921]
[1745546406301,0.7634,1767.8,1767.1,5.7031]
[1745546406532,0.7634,1767.8,1767.1,6.47267921]
[1745546406704,0.7634,1767.8,1767.1,1.57167921]
[1745546407032,0.7634,1767.8,1767.1,2.00372943]
[1745546407203,0.7529,1767.7,1767.0,3.76957921]
[1745546408203,0.7529,1767.7,1767.0,0.76957921]
[1745546408737,0.7529,1767.7,1767.2,0.76957921]
[1745546409311,0.7529,1767.7,1767.4,0.76957921]
[1745546409810,0.7529,1767.7,1767.0,0.43128658]
[1745546409811,0.7529,1767.7,1767.0,1.20086579]
[1745546410012,0.7956,1767.6,1766.8,0.76957921]
[1745546410325,0.7956,1767.5,1766.8,1.52600713]
[1745546410523,0.7956,1767.5,1766.8,0.76957921]
[1745546411704,0.7956,1767.5,1766.7,2.98632219]
[1745546412315,0.7956,1767.5,1766.8,0.76957921]
[1745546414936,0.7956,1767.5,1766.8,1.57417921]
[1745546415743,0.7956,1767.5,1767.2,0.76957921]
[1745546416315,0.7956,1767.5,1767.2,1.14653713]
[1745546417224,0.7956,1767.5,1767.2,0.37695792]
[1745546419325,0.7956,1767.5,1766.6,6.08042173]
[1745546419521,0.8297,1767.4,1766.6,5.6645]
[1745546419728,0.8297,1767.3,1766.3,6.43107921]
[1745546420051,0.8297,1767.3,1766.4,3.64310792]
[1745546420549,0.76957921,1767.2,1766.4,0.64310792]
[1745546420757,0.8297,1766.9,1766.1,5.66457921]
[1745546421047,0.8297,1766.9,1765.9,18.51107921]
[1745546421222,0.8297,1766.9,1765.9,23.40607921]
[1745546421423,0.8297,1766.9,1766.0,5.34060792]
[1745546421660,0.8297,1766.9,1766.1,0.76957921]
[1745546422557,0.8297,1766.9,1766.5,0.76957921]
[1745546423057,0.8297,1766.9,1766.4,3.0]
[1745546423242,0.8297,1766.9,1766.6,0.76957921]
[1745546425352,4.895,1767.1,1766.6,0.76957921]
[1745546425353,5.6504,1767.1,1766.8,0.76957921]
[1745546425558,0.7554,1767.1,1766.8,0.76957921]
[1745546425946,0.7554,1767.1,1766.8,3.76957921]
[1745546426135,0.7554,1767.1,1766.9,0.37695792]
[1745546428850,0.8125,1767.4,1766.9,0.37695792]
[1745546429256,0.8125,1767.4,1767.0,0.76957921]
[1745546431727,4.895,1767.8,1767.2,0.76957921]
[1745546431728,0.8114,1767.6,1767.2,0.76957921]
[1745546431934,0.8114,1767.8,1767.4,0.76957921]
[1745546432687,0.7785,1768.0,1767.4,0.76957921]
[1745546432841,0.7785,1768.0,1767.6,0.76957921]
[1745546433188,0.7649,1767.9,1767.3,3.76957921]
[1745546433557,0.7649,1767.9,1767.3,0.76957921]
[1745546433756,0.7649,1767.9,1767.3,3.76957921]
[1745546433946,0.7649,1767.9,1767.4,0.37695792]
[1745546436787,4.895,1768.1,1767.7,0.76957921]
[1745546436941,0.7905,1768.0,1767.7,0.76957921]
[1745546437143,0.7905,1768.0,1767.5,1.57267921]
[1745546437558,0.7905,1768.0,1767.5,0.76957921]
[1745546437844,0.7905,1768.0,1767.4,0.37695792]
[1745546438074,0.7905,1768.0,1767.4,0.80035116]
[1745546438872,0.7905,1768.0,1767.5,0.76957921]
[1745546441813,0.8301,1768.2,1767.7,0.76957921]
[1745546442019,4.894,1768.7,1767.7,3.76957921]
[1745546442315,0.8256,1768.6,1767.9,0.76957921]
[1745546442664,0.8256,1768.6,1767.8,1.17545792]
[1745546443610,0.8256,1768.6,1767.9,0.76957921]
[1745546444593,0.8256,1768.6,1768.1,1.56777921]
[1745546444960,0.8256,1768.6,1768.1,4.56777921]
[1745546445163,0.8256,1768.6,1768.2,0.45677792]
[1745546445567,0.8256,1768.6,1767.9,6.46177921]
[1745546446706,0.8256,1768.6,1767.9,6.8945751]
[1745546448025,0.8256,1768.6,1768.3,0.76957921]
[1745546448169,0.8256,1768.6,1768.0,3.0]
[1745546448170,0.8256,1768.6,1768.4,0.76957921]
[1745546448499,4.893,1769.1,1768.4,0.76957921]
[1745546448701,0.7536,1769.0,1768.4,0.76957921]
[1745546451132,0.7536,1769.0,1768.2,1.53467921]
[1745546452416,0.7536,1769.0,1768.4,3.0]
[1745546454191,0.7536,1769.0,1768.3,4.89]
[1745546454599,0.8141,1768.9,1768.3,4.89]
[1745546454802,0.8141,1768.9,1768.1,3.0]
[1745546455130,0.8141,1768.9,1768.1,4.28613]
[1745546455301,0.8141,1768.9,1768.1,1.28613]
[1745546455491,0.8141,1768.9,1768.0,0.8213]
[1745546455921,0.7532,1768.8,1768.0,0.8213]
[1745546456605,4.89,1768.7,1768.0,1.59087921]
[1745546456804,0.806,1768.6,1768.0,1.59087921]
[1745546457008,0.806,1768.6,1767.9,0.43279589]
[1745546457009,0.806,1768.5,1767.9,0.43279589]
[1745546457223,0.806,1768.5,1767.8,4.93293713]
[1745546457604,0.8235,1768.4,1767.6,0.7919]
[1745546457829,0.8235,1768.2,1767.4,7.25183037]
[1745546457982,1.39485,1768.2,1767.6,0.76957921]
[1745546458405,0.8235,1768.1,1767.6,0.76957921]
[1745546459111,0.8235,1768.1,1767.5,1.49476225]
[1745546459283,0.8235,1768.1,1767.5,0.76957921]
[1745546459694,0.8235,1768.1,1767.4,0.80035116]
[1745546459695,0.8235,1768.1,1767.4,0.37695792]
[1745546459899,0.8235,1768.1,1767.3,0.76957921]
[1745546460530,0.8235,1768.1,1767.5,0.76957921]
[1745546461117,0.8235,1768.1,1767.3,3.76957921]
[1745546461516,0.8235,1768.1,1767.5,0.76957921]
[1745546462243,0.8235,1768.1,1767.7,0.76957921]
[1745546462543,0.8235,1768.1,1767.9,0.76957921]
[1745546463122,4.89,1768.3,1767.9,0.76957921]
[1745546463437,5.7001,1768.3,1767.9,0.76957921]
[1745546463643,0.8101,1768.5,1768.1,0.76957921]
[1745546470035,0.8101,1768.5,1767.9,3.76957921]
[1745546470344,0.8101,1768.5,1767.6,4.89]
[1745546470516,0.7915,1768.3,1767.5,6.41407921]
[1745546474658,0.7915,1768.3,1767.7,0.76957921]
[1745546476321,0.7915,1768.3,1767.9,0.76957921]
[1745546476737,0.7665,1768.5,1767.9,0.76957921]
[1745546477066,1.33225,1768.5,1767.9,0.76957921]
[1745546480262,0.7665,1768.5,1767.9,0.76957921]
[1745546480964,0.7665,1768.5,1767.6,0.8189]
[1745546481149,0.7665,1768.5,1767.6,0.76957921]
[1745546481554,0.7665,1768.5,1767.6,3.76957921]
[1745546481864,0.7751,1768.1,1767.2,0.76957921]
[1745546482063,0.7832,1767.9,1767.1,6.42417921]
[1745546482233,0.7832,1767.9,1767.2,3.0]
[1745546482643,0.7832,1767.9,1767.1,6.42417921]
[1745546482841,0.7832,1767.9,1767.1,0.64241792]
[1745546483181,0.7832,1767.9,1766.9,1.52627921]
[1745546483182,0.7835,1767.7,1766.9,0.76957921]
[1745546483341,0.7835,1767.7,1766.8,5.30630515]
[1745546483342,0.7835,1767.4,1766.6,5.65857921]
[1745546483543,0.7835,1767.4,1766.7,3.56585792]
[1745546483944,0.7835,1767.4,1766.8,0.76957921]
[1745546484548,0.7835,1767.4,1766.6,4.889]
[1745546484549,0.7835,1767.4,1766.6,0.76957921]
[1745546484775,0.7835,1767.4,1766.4,5.65857921]
[1745546484974,0.7835,1767.4,1766.3,0.7567]
[1745546484975,0.7835,1767.2,1766.3,0.76957921]
[1745546485177,0.7835,1767.0,1766.3,0.76957921]
[1745546485375,1.35085,1767.0,1766.1,9.3370502]
[1745546485565,1.35085,1767.0,1766.2,3.0]
[1745546486176,1.35085,1767.0,1766.1,5.6467]
[1745546486345,0.7987,1766.9,1766.2,3.0]
[1745546489948,0.7987,1766.9,1766.3,3.6903502]
[1745546490277,0.7987,1766.9,1766.5,3.6903502]
[1745546490448,4.891,1767.1,1766.7,3.6903502]
[1745546491043,0.79,1767.2,1766.8,3.0]
[1745546492378,5.6673,1767.4,1766.9,3.6903502]
[1745546492583,5.6673,1767.4,1767.0,3.0]
[1745546492882,5.6673,1767.4,1767.1,0.3]
[1745546493064,0.7753,1767.4,1767.1,0.3]
[1745546493447,0.7547,1767.6,1767.1,3.9903502]
[1745546497490,0.7547,1767.6,1767.1,0.3]
[1745546497658,1.31937,1767.6,1766.9,7.891]
[1745546498057,0.7547,1767.6,1766.9,7.891]
[1745546507091,0.7547,1767.6,1766.9,11.5813502]
[1745546508272,0.7547,1767.6,1766.9,7.891]
[1745546508868,0.7547,1767.6,1766.7,4.891]
[1745546509070,0.7547,1767.6,1766.8,3.0]
[1745546509503,0.7547,1767.6,1766.8,0.7891]
[1745546509819,0.7547,1767.6,1766.8,3.7891]
[1745546510297,0.7547,1767.6,1766.9,3.6903502]
[1745546510587,0.7547,1767.6,1766.9,4.5167502]
[1745546512164,0.7547,1767.6,1766.9,3.6903502]
[1745546512369,1.31937,1767.6,1767.0,0.36903502]
[1745546512669,0.7572,1767.5,1767.0,0.36903502]
[1745546514995,0.7572,1767.5,1767.0,3.36903502]
[1745546515411,0.7572,1767.5,1767.2,3.0]
[1745546515998,0.8119,1767.8,1767.3,3.6903502]
[1745546516185,0.8119,1767.8,1767.4,0.36903502]
[1745546516507,0.8119,1767.8,1767.4,3.36903502]
[1745546519678,0.7607,1768.0,1767.4,3.36903502]
[1745546522937,0.7607,1768.0,1767.4,0.36903502]
[1745546523145,0.7607,1768.0,1767.3,3.41488675]
[1745546523451,0.7607,1768.0,1767.3,0.41488675]
[1745546523652,0.7607,1768.0,1767.2,3.0]
[1745546526156,0.7607,1768.0,1767.2,3.43198913]
[1745546529334,0.7607,1768.0,1767.4,0.76781951]
[1745546531468,1.32567,1768.0,1767.4,0.76781951]
[1745546533872,3.76781951,1768.4,1767.6,0.76781951]
[1745546533873,4.888,1768.4,1767.6,0.76781951]
[1745546534081,0.8298,1768.3,1767.8,1.54761951]
[1745546534372,0.8298,1768.3,1767.8,0.7798]
[1745546535079,0.8298,1768.3,1767.5,3.0]
[1745546535873,0.8298,1768.3,1767.4,0.8093]
[1745546536272,0.7945,1767.9,1767.2,0.8093]
[1745546536593,0.7945,1767.7,1767.0,1.57711951]
[1745546536764,1.36275,1767.7,1767.0,1.57711951]
[1745546536969,0.7945,1767.7,1767.0,1.57711951]
[1745546537469,0.7945,1767.7,1767.0,0.8093]
[1745546538957,0.7945,1767.7,1767.0,1.23409482]
[1745546539177,0.7945,1767.7,1767.0,0.8093]
[1745546541801,0.7945,1767.7,1767.1,3.0]
[1745546541944,0.7945,1767.7,1767.2,0.3]
[1745546542146,0.7769,1767.9,1767.3,0.8167]
[1745546542371,4.889,1768.0,1767.3,3.8167]
[1745546543201,4.889,1768.0,1767.6,0.7887]
[1745546543424,0.7769,1768.1,1767.6,0.7887]
[1745546543831,5.6916,1768.3,1767.6,4.47560805]
[1745546544127,5.6916,1768.3,1767.7,0.44756081]
[1745546545315,5.6916,1768.3,1767.7,0.8797954]
[1745546546098,5.6916,1768.3,1767.7,0.44756081]
[1745546546393,5.6916,1768.3,1767.6,0.7887]
[1745546549498,5.6916,1768.3,1767.6,1.22138659]
[1745546550706,0.7657,1768.2,1767.6,1.22138659]
[1745546552727,4.887,1768.3,1767.6,1.22138659]
[1745546553129,0.7518,1768.4,1767.6,1.22138659]
[1745546553130,0.7518,1768.4,1767.8,3.68690805]
[1745546553335,0.7518,1768.4,1768.0,0.7693]
[1745546553705,5.6378,1768.6,1768.0,0.7693]
[1745546553938,0.52075124,1768.7,1768.1,3.0]
[1745546554141,0.7609,1768.8,1768.2,0.8207]
[1745546554441,0.7609,1769.0,1768.4,0.8207]
[1745546555919,0.7609,1769.0,1768.4,1.20277]
[1745546556122,0.7609,1769.0,1768.2,0.7587]
[1745546557053,0.8124,1768.9,1768.0,0.7848]
[1745546557336,0.8124,1768.8,1768.0,0.7848]
[1745546558399,0.8124,1768.8,1767.8,0.7531]
[1745546558400,0.7614,1768.7,1767.8,0.7531]
[1745546558598,0.7614,1768.7,1767.8,1.0531]
[1745546559136,0.7614,1768.7,1767.8,0.7531]
[1745546559904,0.7614,1768.7,1768.0,3.0]
[1745546560140,0.7614,1768.7,1768.1,0.7531]
[1745546563053,4.885,1768.8,1768.1,0.7531]
[1745546566656,4.885,1768.8,1768.2,0.8165]
[1745546569559,4.885,1768.8,1768.2,1.23301825]
[1745546569725,4.885,1768.8,1768.3,0.8165]
[1745546570446,5.6821,1769.1,1768.3,0.8165]
[1745546571345,5.6821,1769.1,1768.4,0.76696675]
[1745546571545,5.6821,1769.1,1768.5,0.8167]
[1745546576831,6.44906675,1769.1,1768.5,0.8167]
[1745546577558,5.6821,1769.1,1768.5,0.8167]
[1745546580637,4.885,1769.1,1768.5,0.8167]
[1745546581661,4.885,1769.1,1768.6,0.7951]
[1745546581852,4.885,1769.1,1768.8,0.7951]
[1745546583569,7.883,1769.4,1768.8,0.7951]
[1745546583769,4.883,1769.4,1768.8,0.7951]
[1745546584167,0.55,1770.0,1768.8,0.7951]
[1745546584168,0.7827,1769.9,1769.2,0.8066]
[1745546584366,4.882,1769.7,1769.2,0.8066]
[1745546584671,0.8131,1770.1,1769.4,0.8247]
[1745546584846,4.882,1770.0,1769.4,0.8247]
[1745546586148,4.882,1770.0,1769.4,1.4247]
[1745546587468,4.882,1770.0,1769.5,0.816]
[1745546587771,4.86845017,1770.0,1769.5,0.816]
[1745546589436,0.76696675,1770.0,1769.5,1.1976]
[1745546589643,0.76696675,1770.0,1769.5,0.816]
[1745546590878,0.76696675,1770.0,1769.1,5.64896675]
[1745546590879,5.7048,1769.9,1769.2,0.8065]
[1745546594183,4.881,1769.9,1769.2,0.8065]
[1745546595783,4.881,1769.9,1769.3,0.806]
[1745546597382,5.3691,1769.9,1769.3,0.806]
[1745546599808,16.961,1770.3,1769.5,0.76696675]
[1745546599953,21.841,1770.3,1769.6,0.7923]
[1745546600153,22.60796675,1770.3,1769.6,0.7923]
[1745546600983,0.76696675,1770.1,1769.6,0.7923]
[1745546601688,0.76696675,1770.2,1769.6,0.7923]
[1745546601894,2.26079668,1770.2,1769.6,0.7923]
[1745546603793,4.88,1770.3,1769.6,0.7923]
[1745546608894,4.88,1770.3,1769.6,1.21888707]
[1745546609075,4.88,1770.3,1769.7,0.8322]
[1745546609271,4.88,1770.3,1769.8,0.8322]
[1745546609593,4.88,1770.3,1770.0,0.7514]
[1745546610101,0.3125839,1770.5,1770.0,0.7514]
[1745546610298,4.878,1770.6,1770.0,0.7514]
[1745546610876,7.0611,1770.6,1770.0,0.7514]
[1745546612395,4.878,1770.6,1770.0,0.7514]
[1745546612978,4.878,1770.6,1770.2,0.7744]
[1745546614698,4.878,1770.9,1770.3,0.76696675]
[1745546614868,4.878,1770.9,1770.4,0.7627]
[1745546615264,4.878,1770.9,1770.5,0.76696675]
[1745546615470,1.13910122,1771.3,1770.6,0.804]
[1745546615682,4.878,1771.2,1770.6,0.804]
[1745546616424,5.64496675,1771.2,1770.6,0.804]
[1745546616626,4.878,1771.2,1770.6,0.804]
[1745546618105,1.59246675,1771.1,1770.6,0.804]
[1745546618413,2.23951343,1771.1,1770.6,0.804]
[1745546618775,1.59246675,1771.1,1770.6,0.804]
[1745546619290,4.878,1771.2,1770.6,0.804]
[1745546619469,4.877,1771.2,1770.6,0.804]
[1745546627915,1.52846675,1771.1,1770.6,0.804]
[1745546628223,0.76696675,1770.7,1770.0,0.7983]
[1745546628623,1.40741342,1770.7,1770.0,0.7983]
[1745546628802,0.64044667,1770.7,1770.0,0.7983]
[1745546629009,6.40446675,1770.8,1770.0,0.7983]
[1745546629518,6.40446675,1770.8,1770.1,0.6]
[1745546629724,6.40446675,1770.8,1770.2,0.7983]
[1745546629925,0.64044667,1770.7,1770.2,0.7983]
[1745546630432,0.76696675,1770.6,1770.2,0.7983]
[1745546630796,0.64044667,1770.7,1770.2,0.7983]
[1745546631000,0.76696675,1770.8,1770.2,0.7983]
[1745546631208,4.876,1770.7,1770.2,0.7983]
[1745546631407,4.876,1770.8,1770.2,0.7983]
[1745546631731,5.64296675,1770.8,1770.2,0.7983]
[1745546632036,7.876,1771.0,1770.2,0.7983]
[1745546632329,0.8218,1770.8,1770.2,0.7983]
[1745546632531,0.76696675,1770.7,1770.2,0.7983]
[1745546632733,4.876,1770.6,1770.2,0.7983]
[1745546632941,2.07636675,1770.5,1769.7,0.8134]
[1745546634030,2.07636675,1770.5,1769.8,0.8134]
[1745546634935,0.4876,1770.5,1769.8,0.8134]
[1745546635703,1.25456675,1770.5,1769.8,0.8134]
[1745546636037,1.56749199,1770.5,1769.8,0.8134]
[1745546636828,0.76696675,1770.3,1769.8,0.8134]
[1745546637038,4.875,1770.2,1769.8,0.8134]
[1745546640536,5.3625,1770.2,1769.8,0.8134]
[1745546640845,4.875,1770.2,1769.8,0.8134]
[1745546642622,4.875,1770.2,1769.5,3.76696675]
[1745546642623,4.876,1770.7,1770.2,0.8202]
[1745546643349,5.6984,1770.7,1770.2,0.8202]
[1745546645250,4.876,1770.7,1770.2,0.8202]
[1745546645423,4.876,1770.7,1770.4,0.7868]
[1745546653465,0.8138,1771.1,1770.4,0.7868]
[1745546653466,4.875,1771.0,1770.4,0.7868]
[1745546654720,4.875,1771.0,1770.5,0.76696675]
[1745546654917,4.875,1771.0,1770.6,0.7667]
[1745546660066,4.875,1771.0,1770.2,0.7583]
[1745546660067,0.76696675,1770.7,1770.2,0.7583]
[1745546660853,3.76696675,1770.9,1770.2,0.7583]
[1745546661058,4.08017136,1770.9,1770.2,0.7583]
[1745546661258,5.0519185,1770.9,1770.2,0.7583]
[1745546662768,1.54376675,1770.7,1770.2,0.7583]
[1745546662958,4.875,1770.6,1770.2,0.7583]
[1745546663672,4.875,1770.6,1769.7,8.64196675]
[1745546663673,0.76696675,1770.5,1769.8,0.8131]
[1745546663875,0.76696675,1770.3,1769.8,0.8131]
[1745546664055,4.875,1770.2,1769.8,0.8131]
[1745546677087,5.6447,1770.2,1769.8,0.8131]
[1745546677283,4.875,1770.2,1769.8,0.8131]
[1745546687047,4.875,1770.2,1770.0,0.7657]
[1745546687236,16.948,1770.7,1770.0,0.7657]
[1745546687237,4.876,1770.5,1770.0,0.7657]
[1745546688678,6.43956675,1770.5,1770.0,0.7657]
[1745546688877,0.64395668,1770.4,1770.0,0.7657]
[1745546689265,0.95846354,1770.4,1770.0,0.7657]
[1745546691647,0.31450686,1770.3,1770.0,0.7657]
[1745546691852,0.31450686,1770.3,1769.8,0.8299]
[1745546691853,0.752,1770.2,1769.8,0.8299]
[1745546692052,4.875,1770.1,1769.8,0.8299]
[1745546693038,5.18950686,1770.1,1769.8,0.8299]
[1745546693246,5.78365755,1770.1,1769.8,0.8299]
[1745546695596,5.18950686,1770.1,1769.8,0.8299]
[1745546695895,4.875,1770.1,1769.8,0.8299]